bitfinex/quotes_ETHUSD_20250511
["timestamp","ask_amount","ask_price","bid_price","bid_amount"]
[1746927161687,3.92844065,2545.6,2544.8,3.17021895]
[1746927162291,1.55149443,2545.9,2544.8,3.17021895]
[1746927162591,5.47942575,2545.9,2544.8,3.130929]
[1746927162782,3.92855171,2545.5,2544.8,3.130929]
[1746927163092,3.92865932,2545.4,2544.8,3.130929]
[1746927163299,3.92890713,2545.3,2544.9,0.5970929]
[1746927163596,3.58736875,2545.8,2544.9,0.5970929]
[1746927163772,3.9286226,2545.5,2544.9,0.5970929]
[1746927163975,3.92872955,2545.4,2544.9,0.5970929]
[1746927164887,7.5154266,2545.8,2544.9,0.5970929]
[1746927165200,3.92923864,2545.1,2545.0,2.839]
[1746927165396,0.8089,2545.5,2545.0,2.839]
[1746927165703,3.92887454,2545.3,2545.0,2.839]
[1746927166105,3.92896731,2545.2,2545.0,2.839]
[1746927166585,3.92911869,2545.1,2545.0,2.839]
[1746927167225,0.7527,2546.1,2545.0,3.1229]
[1746927167399,3.92783563,2546.0,2545.1,0.03928758]
[1746927167600,3.92791141,2545.9,2545.1,0.03928758]
[1746927167801,3.92791141,2545.9,2545.1,0.63940634]
[1746927168025,12.22048892,2546.2,2545.1,0.63940634]
[1746927168318,0.29304518,2546.2,2545.1,0.63940634]
[1746927168526,3.9275755,2546.1,2545.1,0.60011876]
[1746927169109,3.92834812,2545.6,2545.1,0.60011876]
[1746927169317,3.92819103,2545.8,2545.2,0.65620188]
[1746927169489,3.92746722,2546.2,2545.2,0.65620188]
[1746927169697,3.92788404,2545.9,2545.0,3.1229]
[1746927170114,3.92803833,2545.8,2545.0,3.1229]
[1746927170315,3.92822509,2545.7,2545.0,3.1229]
[1746927170503,3.92822509,2545.7,2545.0,8.2839]
[1746927170704,3.92812053,2545.8,2545.1,2.839]
[1746927170925,3.92812053,2545.8,2545.2,0.31229]
[1746927171224,0.7527,2545.9,2545.2,0.31229]
[1746927171411,3.92862525,2545.5,2545.1,2.839]
[1746927171616,3.92841944,2545.6,2545.1,2.839]
[1746927171825,3.92813892,2545.8,2545.1,2.839]
[1746927172034,0.7912,2546.5,2545.3,0.55]
[1746927172223,4.36218612,2546.8,2545.4,2.838]
[1746927172395,3.92740397,2546.3,2545.4,2.838]
[1746927172808,3.92680436,2546.6,2545.4,2.838]
[1746927173331,3.92764596,2546.1,2545.4,2.838]
[1746927173516,3.92764596,2546.1,2545.5,0.2838]
[1746927173696,3.92738006,2546.3,2545.6,0.03928051]
[1746927173897,3.92717698,2546.4,2545.7,2.839]
[1746927174093,11.12996986,2546.7,2545.7,2.839]
[1746927174335,3.92771818,2546.1,2545.7,2.839]
[1746927174736,3.92771818,2546.1,2545.7,3.15128]
[1746927175132,3.92779848,2546.0,2545.7,3.15128]
[1746927175340,3.92799859,2545.9,2545.7,2.839]
[1746927175945,3.57098612,2546.4,2545.7,2.839]
[1746927176236,3.92771908,2546.1,2545.7,2.839]
[1746927176421,3.92755561,2546.2,2545.7,2.839]
[1746927176625,0.29196986,2546.7,2545.7,3.15128]
[1746927176826,0.20491299,2547.9,2545.9,0.55]
[1746927176827,0.2899965,2547.0,2545.9,0.55]
[1746927177038,3.92630968,2547.0,2546.0,0.03926582]
[1746927177245,8.0,2547.2,2546.1,14.137]
[1746927177404,3.9266824,2546.7,2546.2,1.4137]
[1746927177599,3.92656659,2546.8,2546.3,2.839]
[1746927177915,3.92656659,2546.8,2546.2,1.4137]
[1746927178113,3.92656659,2546.8,2546.3,2.839]
[1746927178905,3.92666262,2546.7,2546.3,2.839]
[1746927179103,3.92666262,2546.7,2546.3,4.96167]
[1746927179438,4.74033077,2547.2,2546.3,4.96167]
[1746927179622,4.74033077,2547.2,2546.4,2.838]
[1746927179823,12.74033077,2547.2,2546.4,2.838]
[1746927180042,3.92621189,2547.0,2546.4,2.838]
[1746927180324,3.92626674,2547.0,2546.5,2.838]
[1746927180524,12.21983547,2547.2,2546.5,2.838]
[1746927180525,8.29384465,2547.2,2546.5,2.838]
[1746927180758,3.92661914,2546.8,2546.5,2.838]
[1746927181056,0.29384465,2547.2,2546.5,2.838]
[1746927181361,3.92611137,2547.1,2546.6,0.3475437]
[1746927181657,3.92526299,2547.6,2546.7,0.03926511]
[1746927181855,3.92541707,2547.5,2546.6,3.1835437]
[1746927182064,3.92541707,2547.5,2546.7,0.03926064]
[1746927182357,2.836,2547.9,2546.7,0.64534107]
[1746927182562,3.92433874,2548.2,2546.8,0.55]
[1746927182756,3.92372282,2548.6,2547.0,0.55]
[1746927182968,3.92429046,2548.3,2547.2,8.55]
[1746927183198,3.92426488,2548.3,2547.3,1.1819703]
[1746927183381,4.7252617,2548.7,2547.4,14.134]
[1746927183382,0.8016,2548.7,2547.4,14.134]
[1746927183525,3.92383272,2548.6,2547.5,0.03924656]
[1746927183724,3.92381606,2548.6,2547.5,8.03924656]
[1746927183938,3.92372651,2548.6,2547.6,0.55]
[1746927184229,3.92383761,2548.6,2547.7,3.73616635]
[1746927184568,3.92382398,2548.6,2547.7,3.73616635]
[1746927185059,4.22389906,2548.7,2547.7,3.73616635]
[1746927185263,3.57098612,2548.9,2547.7,3.69692466]
[1746927185431,3.92429271,2548.3,2547.7,3.69692466]
[1746927185638,3.92429271,2548.3,2547.8,6.04069247]
[1746927185823,3.92429271,2548.3,2547.9,2.837]
[1746927186218,3.57098612,2548.9,2547.9,2.837]
[1746927186459,0.8016,2549.0,2547.9,2.837]
[1746927186629,0.28843324,2549.0,2548.1,0.55]
[1746927186991,3.92218387,2549.6,2548.3,0.55]
[1746927187162,3.92320601,2549.0,2548.2,0.85892435]
[1746927187467,3.92347774,2548.8,2547.9,0.55]
[1746927187633,3.92382495,2548.6,2548.3,2.837]
[1746927187818,3.9235475,2548.8,2548.4,2.837]
[1746927188025,3.92379669,2548.6,2548.5,2.837]
[1746927188221,3.92391964,2548.5,2547.7,0.85892466]
[1746927188426,3.57098612,2548.9,2547.8,2.837]
[1746927188683,3.92411232,2548.4,2547.9,0.65289247]
[1746927188839,3.92426632,2548.3,2547.9,0.65289247]
[1746927189371,3.92376573,2548.6,2547.9,0.65289247]
[1746927189523,3.92389463,2548.5,2547.9,0.65289247]
[1746927189724,3.92412435,2548.4,2547.9,0.65289247]
[1746927189932,3.92431782,2548.3,2548.0,2.837]
[1746927190173,3.924292,2548.3,2548.0,2.837]
[1746927190463,3.57098612,2548.6,2548.0,2.837]
[1746927190626,3.92432448,2548.3,2548.0,2.837]
[1746927190840,3.57098612,2548.6,2548.0,2.837]
[1746927191035,3.92350562,2548.8,2548.0,3.1207]
[1746927191235,3.92304172,2549.1,2548.1,0.03924431]
[1746927191470,8.0,2549.3,2548.2,2.833]
[1746927191675,3.92353433,2548.8,2548.2,2.833]
[1746927191874,3.92353433,2548.8,2548.3,1.0833]
[1746927192364,9.52055861,2549.3,2548.3,1.0833]
[1746927192538,3.9233816,2548.9,2548.3,1.0833]
[1746927192743,3.57098612,2549.4,2548.3,1.0833]
[1746927192957,3.92308158,2549.1,2548.4,0.39163]
[1746927193180,3.57098612,2549.4,2548.4,0.39163]
[1746927193181,7.49348453,2549.4,2548.5,0.03923446]
[1746927193479,3.92264543,2549.3,2548.6,2.836]
[1746927193683,3.92333016,2548.9,2548.6,2.836]
[1746927193887,3.92342092,2548.8,2548.6,2.836]
[1746927194499,3.92321918,2549.0,2548.6,2.836]
[1746927194787,7.49350898,2549.4,2548.4,0.39163]
[1746927194990,3.92281879,2549.2,2548.7,2.836]
[1746927195148,3.92356032,2548.8,2548.7,2.832]
[1746927196078,3.92321134,2549.0,2548.7,2.832]
[1746927196284,3.92359557,2548.7,2548.0,8.0]
[1746927196584,3.92359557,2548.7,2545.9,1.9918711]
[1746927196585,3.92464678,2548.0,2547.9,2.832]
[1746927196784,3.92387679,2548.5,2547.9,2.832]
[1746927196942,6.40298612,2548.9,2548.0,0.2832]
[1746927197147,3.92399945,2548.5,2548.0,0.2832]
[1746927197342,3.92380048,2548.6,2548.0,0.2832]
[1746927197553,10.32627437,2548.9,2548.0,0.2832]
[1746927197786,3.57098612,2548.6,2547.9,2.832]
[1746927198080,3.92407562,2548.4,2547.5,8.0]
[1746927198300,3.92341494,2548.8,2548.0,2.832]
[1746927198504,3.92358136,2548.7,2548.0,2.832]
[1746927198703,3.92391092,2548.5,2548.0,2.832]
[1746927199014,11.92329572,2548.9,2547.5,8.0]
[1746927199306,3.9239728,2548.5,2547.7,8.0]
[1746927199470,3.92403345,2548.4,2547.7,8.0]
[1746927199668,3.92429137,2548.3,2547.4,14.134]
[1746927199871,3.92443928,2548.2,2547.8,2.832]
[1746927200264,3.6218,2548.6,2547.8,2.832]
[1746927200469,3.92387679,2548.5,2547.8,2.832]
[1746927200801,8.0,2548.9,2547.8,2.832]
[1746927200802,3.92320659,2549.0,2547.9,8.03924643]
[1746927201006,6.40198612,2549.1,2547.9,8.0]
[1746927201517,3.9231071,2549.0,2547.9,8.03924066]
[1746927201670,3.92326539,2548.9,2547.9,8.0]
[1746927201871,3.92317729,2549.0,2548.0,1.08712407]
[1746927202066,3.92342352,2548.8,2548.1,8.0]
[1746927202304,3.92382534,2548.6,2548.1,8.0]
[1746927202503,3.92364487,2548.7,2548.1,8.0]
[1746927202685,3.92373021,2548.6,2548.1,8.0]
[1746927203003,3.92359257,2548.7,2548.1,9.19181241]
[1746927203212,3.92376242,2548.6,2548.1,9.19181241]
[1746927203604,7.44541717,2548.8,2548.1,9.19181241]
[1746927203808,7.44544326,2548.8,2548.1,9.19181241]
[1746927204012,3.92364463,2548.7,2548.2,1.31099365]
[1746927204210,3.52195463,2548.8,2548.2,1.31099365]
[1746927204410,7.44541369,2548.8,2548.2,1.31099365]
[1746927204577,3.52195463,2548.8,2548.2,1.31099365]
[1746927204993,7.44549588,2548.8,2548.2,1.31099365]
[1746927205193,3.9227993,2549.2,2548.3,0.97033889]
[1746927205376,3.9227993,2549.2,2548.4,2.831]
[1746927205689,3.9227993,2549.2,2548.5,0.03923472]
[1746927205887,3.9227993,2549.2,2548.4,2.831]
[1746927205888,3.92298152,2549.1,2548.4,2.831]
[1746927206091,3.92285895,2549.2,2548.5,0.37620994]
[1746927206290,3.92285895,2549.2,2548.5,0.41544452]
[1746927206494,0.8003,2549.6,2548.5,8.41544452]
[1746927206716,0.8003,2550.6,2548.8,0.55]
[1746927206883,7.4429401,2550.4,2549.0,8.55]
[1746927207084,4.64038704,2550.4,2549.2,8.0]
[1746927207309,3.92150506,2550.1,2549.3,2.83]
[1746927207524,3.92150506,2550.1,2549.3,2.86921981]
[1746927207880,3.92158479,2550.0,2549.3,2.86921981]
[1746927208081,3.92146599,2550.1,2549.3,2.86921981]
[1746927208397,3.92146599,2550.1,2549.4,1.08692198]
[1746927208580,3.92148743,2550.1,2549.4,1.08692198]
[1746927209278,8.56137413,2550.4,2549.4,1.08692198]
[1746927209479,3.52195463,2550.1,2549.5,2.831]
[1746927210028,3.92199085,2549.8,2549.5,2.831]
[1746927210187,3.92204934,2549.7,2549.5,2.831]
[1746927210387,3.92218387,2549.6,2549.5,2.831]
[1746927210608,4.33285463,2550.1,2549.5,2.831]
[1746927210808,11.92118701,2550.3,2549.5,3.1141]
[1746927211013,3.92118701,2550.3,2549.5,3.1141]
[1746927211195,3.921196,2550.3,2549.5,3.1141]
[1746927211515,3.9215824,2550.0,2549.5,3.1141]
[1746927211722,7.44279679,2550.5,2549.6,0.31141]
[1746927212084,3.92144775,2550.1,2549.6,0.31141]
[1746927212281,3.92143012,2550.1,2549.1,2.27102225]
[1746927212520,3.52195463,2550.5,2549.3,8.0]
[1746927212820,3.92095357,2550.4,2549.3,8.0]
[1746927213321,3.92104579,2550.4,2549.3,8.0]
[1746927213529,3.92119186,2550.3,2549.3,8.0]
[1746927213685,3.92119186,2550.3,2549.4,1.083]
[1746927213891,3.92127847,2550.2,2549.4,1.083]
[1746927214124,3.92095357,2550.4,2549.4,1.083]
[1746927214308,3.92148646,2550.1,2549.4,1.083]
[1746927214712,3.92157002,2550.0,2549.4,1.083]
[1746927215009,3.92211898,2549.7,2549.5,2.83]
[1746927215486,3.92218387,2549.6,2549.5,2.83]
[1746927215901,3.9221001,2549.7,2549.5,2.83]
[1746927216220,3.92203848,2549.7,2549.5,2.83]
[1746927216430,3.92218387,2549.6,2549.5,2.83]
[1746927216734,1.62541444,2550.0,2549.5,2.83]
[1746927217072,3.52195463,2549.9,2549.1,2.27102225]
[1746927217342,3.92218387,2549.6,2549.2,2.83]
[1746927217493,3.92255655,2549.4,2549.2,2.83]
[1746927217697,3.92263608,2549.4,2549.2,2.83]
[1746927217991,3.92258707,2549.4,2549.2,2.83]
[1746927218328,3.92252657,2549.4,2549.2,2.83]
[1746927218726,3.92226026,2549.6,2549.2,2.83]
[1746927219022,4.68024666,2549.7,2549.2,2.83]
[1746927219226,3.92189412,2549.8,2549.2,3.113]
[1746927219593,3.92172242,2549.9,2549.2,3.113]
[1746927219924,3.92245355,2549.5,2549.2,3.113]
[1746927220132,3.92203044,2549.7,2549.3,0.3113]
[1746927220333,3.92195536,2549.8,2549.3,0.3113]
[1746927220535,3.52195463,2550.2,2549.3,0.3113]
[1746927221245,3.92184246,2549.9,2549.3,0.3113]
[1746927221541,3.52195463,2550.2,2549.4,0.03921984]
[1746927221745,3.92151634,2550.1,2549.4,0.03921984]
[1746927221904,7.44323034,2550.2,2549.4,0.03921984]
[1746927221905,3.52195463,2550.2,2549.4,0.03921984]
[1746927222109,3.92195373,2549.8,2549.3,0.3113]
[1746927222310,3.92225772,2549.6,2549.3,0.3113]
[1746927222505,3.52195463,2549.9,2549.4,2.83]
[1746927222949,3.92233771,2549.5,2549.4,2.83]
[1746927224248,3.92249156,2549.4,2549.1,2.83]
[1746927224455,7.44419228,2549.6,2549.1,2.83]
[1746927224651,3.52195463,2549.6,2549.1,4.5251]
[1746927224818,3.92279,2549.3,2549.1,2.83]
[1746927225220,3.92254954,2549.4,2549.1,2.83]
[1746927225421,3.92268398,2549.3,2549.1,2.83]
[1746927225619,3.9226803,2549.3,2549.1,2.83]
[1746927225847,3.92250241,2549.4,2549.1,2.83]
[1746927226020,2.826,2549.7,2549.1,4.5251]
[1746927226522,11.05477073,2550.2,2549.2,0.03922471]
[1746927226721,7.13345463,2550.2,2549.2,0.03922471]
[1746927226923,3.92158145,2550.0,2549.1,4.5251]
[1746927227128,3.92049241,2550.7,2549.2,12.11117368]
[1746927227335,3.92081666,2550.5,2549.4,0.55]
[1746927227534,3.92081666,2550.5,2549.5,0.03921444]
[1746927227730,3.92077001,2550.6,2549.6,2.825]
[1746927227969,3.92077001,2550.6,2549.7,2.826]
[1746927228269,0.7577,2551.1,2549.8,2.826]
[1746927228424,3.92052744,2550.7,2549.8,2.86521212]
[1746927229137,6.34695463,2551.0,2549.8,2.86521212]
[1746927229138,3.92083759,2550.5,2549.8,2.826]
[1746927229333,3.92070844,2550.6,2549.9,0.03921211]
[1746927229765,3.92059688,2550.7,2549.9,0.03921211]
[1746927229972,3.9207576,2550.6,2549.9,0.28652121]
[1746927230266,3.9207576,2550.6,2549.5,2.825]
[1746927230267,3.55741729,2550.6,2549.5,2.825]
[1746927230464,3.55741729,2550.6,2549.6,0.03922087]
[1746927230624,3.92095774,2550.4,2549.5,2.825]
[1746927231136,2.824,2550.4,2549.5,2.825]
[1746927231362,4.31511729,2550.3,2549.5,2.825]
[1746927231666,3.92169238,2550.0,2549.5,2.825]
[1746927231872,3.92150382,2550.1,2549.5,2.825]
[1746927232169,2.824,2550.4,2549.5,2.825]
[1746927232466,7.47792304,2550.7,2549.6,0.0392161]
[1746927232625,1.08572765,2550.9,2549.6,0.0392161]
[1746927232626,7.8300272,2550.9,2549.6,0.0392161]
[1746927232824,8.0,2550.8,2549.6,0.60803771]
[1746927233024,11.92038585,2550.8,2549.6,8.60803771]
[1746927233224,3.92060771,2550.7,2549.6,8.60803771]
[1746927233881,3.9205009,2550.7,2549.6,8.56882161]
[1746927234083,6.38141729,2550.7,2549.1,1.6951]
[1746927234386,3.92121435,2550.3,2549.3,8.0]
[1746927234530,3.921124,2550.3,2549.4,0.03921931]
[1746927234957,3.92130007,2550.2,2549.3,8.0]
[1746927235147,3.92143226,2550.1,2549.4,1.3649]
[1746927235360,3.92110732,2550.3,2549.4,1.3649]
[1746927235564,3.92110732,2550.3,2549.5,0.03921933]
[1746927235730,3.92126577,2550.2,2549.4,1.3649]
[1746927235936,11.92150617,2550.1,2549.4,1.3649]
[1746927236247,11.92150617,2550.1,2549.2,5.649]
[1746927236865,3.92157012,2550.0,2549.2,5.649]
[1746927237071,8.0,2549.9,2549.3,2.825]
[1746927237254,3.9219449,2549.8,2549.3,2.825]
[1746927237453,8.0,2549.9,2549.3,3.27701]
[1746927237653,14.74453524,2550.1,2549.3,3.31623118]
[1746927237871,3.92158702,2550.0,2549.3,3.27701]
[1746927238366,3.92135821,2550.2,2549.4,0.03922117]
[1746927238578,3.92142437,2550.1,2549.3,3.27701]
[1746927238757,10.823,2550.3,2549.4,0.36692032]
[1746927239268,3.92135204,2550.2,2549.4,0.327701]
[1746927239469,8.0,2550.2,2549.3,3.27701]
[1746927239775,8.0,2550.0,2549.4,0.03922085]
[1746927239976,11.92152551,2550.1,2549.3,3.27701]
[1746927240159,8.0,2550.1,2549.3,3.27701]
[1746927240336,8.0,2550.2,2549.4,0.03922085]
[1746927240536,8.0,2550.2,2549.4,0.37084394]
[1746927240838,3.92023197,2550.9,2549.5,0.55]
[1746927241044,4.67415913,2551.5,2549.7,4.10741729]
[1746927241347,4.47,2552.0,2550.6,0.55]
[1746927241548,4.47,2552.0,2550.8,0.55]
[1746927241549,0.447,2551.9,2550.8,0.55]
[1746927241877,4.47,2552.0,2550.8,0.55]
[1746927242172,1.32703125,2552.0,2551.2,0.55]
[1746927242377,1.32703125,2552.0,2551.4,0.55]
[1746927243170,1.32703125,2552.0,2551.5,0.03918114]
[1746927243333,1.32703125,2552.0,2551.4,0.55]
[1746927243536,1.32703125,2552.0,2551.5,0.6197]
[1746927243796,7.34968062,2553.1,2551.9,0.55]
[1746927244073,7.34968062,2553.1,2552.1,4.10741729]
[1746927244277,7.34968062,2553.1,2552.3,0.55]
[1746927244687,7.34968062,2553.1,2552.1,0.55]
[1746927244850,8.0,2553.4,2552.1,0.55]
[1746927244851,8.0,2553.4,2552.3,0.55]
[1746927245051,8.0,2553.8,2552.3,0.55]
[1746927245254,11.91583186,2553.8,2552.3,0.55]
[1746927245449,11.91591085,2553.7,2552.3,0.55]
[1746927245682,11.91591085,2553.7,2552.4,0.25808]
[1746927245883,8.0,2553.5,2552.0,14.111]
[1746927246035,8.0,2553.3,2552.5,2.824]
[1746927246357,8.0,2552.6,2552.5,2.824]
[1746927247379,0.29150956,2553.7,2552.5,2.824]
[1746927247575,8.0,2553.4,2552.5,2.824]
[1746927247767,8.0,2552.9,2552.5,2.824]
[1746927247963,3.9170416,2553.0,2552.5,2.824]
[1746927247964,8.0,2553.2,2552.6,0.03917507]
[1746927248278,3.11247852,2553.9,2552.5,2.824]
[1746927248477,8.0,2553.5,2552.5,2.824]
[1746927248681,3.91575022,2553.8,2552.6,0.58916677]
[1746927248887,0.39157502,2553.7,2552.6,0.89131668]
[1746927249182,3.91586777,2553.8,2552.6,0.89131668]
[1746927249648,8.0,2553.2,2552.5,2.824]
[1746927249853,8.0,2554.0,2552.5,2.824]
[1746927249854,8.0,2553.6,2552.5,2.824]
[1746927250169,11.91590954,2553.7,2552.6,0.03916745]
[1746927250357,8.0,2553.1,2552.5,2.824]
[1746927250761,8.0,2552.9,2552.0,14.111]
[1746927250953,8.0,2553.0,2552.1,5.643]
[1746927251149,11.91702662,2553.0,2552.1,5.643]
[1746927251376,13.10849704,2553.1,2552.1,5.643]
[1746927251578,8.0,2552.7,2552.1,5.643]
[1746927251753,8.0,2552.9,2552.1,5.643]
[1746927252086,8.0,2552.7,2552.1,2.823]
[1746927252381,11.91818822,2552.2,2552.1,2.823]
[1746927252999,11.91818822,2552.2,2551.0,14.101]
[1746927253000,8.0,2552.1,2551.0,14.101]
[1746927253143,8.0,2552.1,2551.3,2.823]
[1746927253144,8.0,2551.6,2551.3,2.823]
[1746927253344,3.91941679,2551.4,2551.3,2.823]
[1746927253572,11.91941679,2551.4,2551.3,2.823]
[1746927254153,8.0,2551.3,2549.9,14.102]
[1746927254351,8.0,2551.3,2550.0,5.642]
[1746927254558,8.0,2550.9,2550.0,5.642]
[1746927254884,3.92015186,2551.0,2550.1,1.9744]
[1746927255175,3.92027844,2550.9,2550.1,1.9744]
[1746927255382,8.0,2550.9,2550.1,1.9744]
[1746927255575,8.0,2551.6,2550.2,0.03920293]
[1746927255742,8.0,2551.4,2550.3,0.55]
[1746927255948,3.91958457,2551.3,2550.3,0.55]
[1746927256281,8.0,2551.4,2550.2,8.76556029]
[1746927256444,3.92007263,2551.0,2550.3,2.819]
[1746927256646,8.0,2551.0,2550.3,2.819]
[1746927256948,11.91952566,2551.4,2550.4,0.03920203]
[1746927257269,8.0,2551.1,2550.3,3.65679603]
[1746927257464,8.0,2551.5,2550.3,3.65679603]
[1746927257465,3.92043353,2550.8,2550.3,2.819]
[1746927257672,3.92021188,2550.9,2550.3,2.819]
[1746927257871,2.819,2551.3,2550.4,0.03920265]
[1746927258072,2.819,2551.3,2550.3,2.819]
[1746927258272,3.92001434,2551.1,2550.3,2.819]
[1746927258475,3.91975492,2551.2,2550.4,0.2819]
[1746927258677,3.91993093,2551.1,2550.4,0.2819]
[1746927258886,3.91993941,2551.1,2550.4,0.2819]
[1746927259062,3.92005564,2551.0,2550.4,0.2819]
[1746927259253,3.91993339,2551.1,2550.4,0.2819]
[1746927260186,3.91837248,2552.1,2550.6,8.55]
[1746927260384,3.5994,2552.3,2550.8,0.55]
[1746927260385,3.91851462,2552.0,2550.8,0.55]
[1746927260587,0.7804,2552.3,2550.8,0.55]
[1746927260588,8.7804,2552.3,2550.9,2.819]
[1746927260882,0.55,2552.8,2550.9,2.819]
[1746927260883,6.37641729,2552.9,2551.0,8.58918946]
[1746927261087,11.91738846,2552.8,2551.2,8.55]
[1746927261385,3.91799568,2552.4,2551.3,15.2409]
[1746927261587,8.0,2552.8,2551.3,15.2409]
[1746927261755,6.37641729,2552.9,2551.4,8.03918271]
[1746927262105,8.0,2552.8,2551.5,2.819]
[1746927262284,3.91827822,2552.2,2551.5,2.819]
[1746927262452,3.91827822,2552.2,2551.5,4.62499]
[1746927262648,3.55741729,2552.5,2551.5,2.819]
[1746927262849,3.91851207,2552.0,2551.5,2.819]
[1746927263072,3.55741729,2552.5,2551.5,2.819]
[1746927263287,3.91852325,2552.0,2551.5,2.819]
[1746927263600,3.9184164,2552.1,2551.5,2.819]
[1746927263783,11.91789411,2552.4,2551.5,4.62499]
[1746927263959,3.91841777,2552.1,2551.5,2.819]
[1746927264156,11.91792233,2552.4,2551.5,2.819]
[1746927264383,3.9180641,2552.3,2551.5,2.819]
[1746927264696,3.91873684,2551.9,2551.5,2.819]
[1746927264853,3.91880586,2551.8,2551.5,2.819]
[1746927265780,3.91870998,2551.9,2551.5,2.819]
[1746927265993,2.818,2552.3,2551.5,2.819]
[1746927266164,3.91873589,2551.9,2551.5,2.819]
[1746927266496,3.91883978,2551.8,2551.5,2.819]
[1746927266862,3.91870943,2551.9,2551.5,2.819]
[1746927267058,8.0,2552.1,2551.3,14.104]
[1746927267287,3.91895599,2551.7,2550.9,2.819]
[1746927267471,3.91895599,2551.7,2550.8,2.819]
[1746927267472,3.91982666,2551.2,2550.8,2.819]
[1746927267689,3.91974749,2551.2,2550.8,2.819]
[1746927267888,3.91997264,2551.1,2550.8,2.819]
[1746927268086,0.4698156,2551.6,2550.8,2.819]
[1746927268087,3.9194931,2551.4,2550.8,2.819]
[1746927268399,3.91992383,2551.1,2550.8,2.819]
[1746927268594,3.91977613,2551.2,2550.8,2.819]
[1746927269099,12.38897846,2551.6,2550.8,2.819]
[1746927269100,3.91988875,2551.1,2550.8,2.819]
[1746927269300,3.91801709,2552.4,2550.8,3.1009]
[1746927269629,3.91841063,2552.1,2551.0,0.55]
[1746927269911,3.91854465,2552.0,2550.9,8.0]
[1746927270067,3.91868704,2551.9,2550.9,8.0]
[1746927270469,3.91890258,2551.8,2550.9,8.0]
[1746927270668,0.55,2552.4,2551.0,1.39189]
[1746927270868,3.91830704,2552.2,2551.1,0.03919229]
[1746927271070,3.91834344,2552.1,2551.1,0.03919229]
[1746927271271,8.0,2552.3,2551.0,1.39189]
[1746927271673,3.91888013,2551.8,2551.0,1.39189]
[1746927271877,0.7792,2552.5,2551.1,0.939189]
[1746927272099,3.91777214,2552.5,2551.2,0.55]
[1746927272283,3.91777214,2552.5,2551.2,0.83968291]
[1746927272481,3.91806844,2552.3,2551.2,0.83968291]
[1746927273006,8.0,2552.7,2551.2,0.28968291]
[1746927273167,3.91894439,2551.8,2551.2,0.26207619]
[1746927273403,3.9190382,2551.7,2551.1,0.939189]
[1746927273599,3.9190382,2551.7,2551.0,4.20989]
[1746927273600,8.7827,2552.4,2551.0,4.20989]
[1746927273982,0.55,2552.3,2551.0,4.20989]
[1746927274182,2.818,2552.2,2551.1,0.03919155]
[1746927274377,6.37541729,2552.2,2550.5,8.0]
[1746927274580,3.91966225,2551.3,2550.6,5.637]
[1746927274784,0.7827,2552.0,2550.7,8.0]
[1746927275011,0.7827,2552.0,2550.8,0.03919906]
[1746927275378,3.91861951,2552.0,2550.7,8.0]
[1746927275714,2.818,2552.3,2550.8,0.58919168]
[1746927276009,0.7827,2551.1,2549.8,2.819]
[1746927276171,8.0,2550.9,2549.9,2.819]
[1746927276373,3.92127825,2550.2,2549.9,2.819]
[1746927276574,4.11147324,2551.0,2549.9,2.819]
[1746927276881,3.55741729,2550.9,2549.6,2.819]
[1746927277106,3.92097009,2550.4,2549.6,2.819]
[1746927277414,3.92074955,2550.6,2549.6,2.819]
[1746927277615,7.47762901,2550.9,2549.7,8.0]
[1746927277911,3.91995728,2551.1,2549.8,0.55]
[1746927278074,3.91995728,2551.1,2549.9,0.855]
[1746927278268,6.73667416,2551.3,2549.9,0.855]
[1746927278470,3.91991775,2551.1,2549.9,0.855]
[1746927279106,3.9197697,2551.2,2549.9,0.855]
[1746927279290,3.9197697,2551.2,2550.0,0.03920426]
[1746927279609,3.92002888,2551.1,2549.9,0.855]
[1746927279982,1.58346633,2551.2,2549.9,0.855]
[1746927280304,3.91803471,2552.3,2550.4,8.55]
[1746927280508,0.29524804,2552.3,2550.6,8.55]
[1746927280685,3.6253,2552.4,2550.8,0.55]
[1746927280896,0.36253,2552.3,2550.7,0.55]
[1746927281086,3.91854726,2552.0,2550.7,0.55]
[1746927281312,3.91889988,2551.8,2550.7,0.55]
[1746927281507,3.91871592,2551.9,2550.7,0.55]
[1746927281809,3.91896481,2551.7,2550.7,0.55]
[1746927282000,3.91896481,2551.7,2550.9,8.0]
[1746927282412,3.91863832,2552.0,2550.9,8.0]
[1746927282712,3.91818822,2552.2,2550.9,8.0]
[1746927282910,3.91894864,2551.8,2550.9,8.0]
[1746927283110,3.91874205,2551.9,2550.9,8.0]
[1746927283312,3.91888874,2551.8,2551.0,1.1673]
[1746927283508,8.65636691,2552.3,2551.1,2.819]
[1746927283694,3.91872508,2551.9,2551.1,2.819]
[1746927283899,12.57442976,2552.3,2551.1,2.819]
[1746927284075,3.91894091,2551.8,2551.1,2.819]
[1746927284283,3.91894091,2551.8,2551.1,4.01763]
[1746927284597,3.91880585,2551.8,2551.1,2.819]
[1746927285220,3.91921475,2551.6,2551.1,2.819]
[1746927285605,3.9191995,2551.6,2551.1,2.819]
[1746927286625,3.91931019,2551.5,2551.1,2.819]
[1746927287091,3.6031,2551.8,2551.1,2.819]
[1746927287292,3.91910957,2551.6,2551.1,2.819]
[1746927287496,3.91949312,2551.4,2551.1,2.819]
[1746927287691,3.91972405,2551.2,2551.1,2.819]
[1746927288214,8.36031,2551.7,2551.1,2.819]
[1746927288432,3.91950003,2551.4,2551.1,2.819]
[1746927288582,3.91957452,2551.3,2551.1,2.819]
[1746927289020,4.70337062,2551.4,2551.1,2.819]
[1746927289219,3.91959245,2551.3,2551.1,2.819]